[Event "Charlotte Fall IM-D 2023"]
[Site "Charlotte"]
[Date "2023.11.17"]
[Round "1.1"]
[White "Karthik, Advaith"]
[Black "Marek, Matyas"]
[Result "*"]
[ECO "A84"]
[WhiteElo "2156"]
[BlackElo "2343"]
[Annotator "RC"]
[PlyCount "43"]
[EventDate "2023.11.17"]
[EventType "tourn"]
[EventCountry "USA"]
[SourceTitle "playchess.com"]
[Source "ChessBase"]
[SourceQuality "1"]
[TimeControl "5400+30"]

1. d4 {[%emt 0:00:03]} d5 {[%emt 0:00:08]} 2. c4 {[%emt 0:00:16]} e6 {[%emt 0:00:03]} 3. Nc3 {[%emt 0:00:16]} c6 {[%emt 0:00:04]} 4. e3 {[%emt 0:00:13]} Nd7 {[%emt 0:00:08]} 5. Nf3 {[%emt 0:00:08]} f5 {[%emt 0:00:52]} 6. Qc2 {[%emt 0:01:44]} Nh6 {[%emt 0:00:34]} 7. Bd3 {[%emt 0:04:13]} Bd6 {[%emt 0:00:38]} 8. O-O {[%emt 0:03:15]} O-O {[%emt 0:00:17]} 9. Re1 {[%emt 0:06:31]} Nf6 {[%emt 0:03:57]} 10. Nd2 {[%emt 0:09:30]} Ne4 {[%emt 0:03:32]} 11. Nf1 {[%emt 0:03:29]} Qh4 {[%emt 0:04:30]} 12. g3 {[%emt 0:00:36]} Qh5 {[%emt 0:03:56]} 13. Qe2 {[%emt 0:01:30]} Qxe2 {[%emt 0:14:40]} 14. Rxe2 {[%emt 0:00:47]} Bd7 {[%emt 0:02:14]} 15. f3 {[%emt 0:01:35]} Nxc3 {[%emt 0:04:45]} 16. bxc3 {[%emt 0:00:02]} Nf7 {[%emt 0:00:42]} 17. a4 {[%emt 0:07:08]} e5 {[%emt 0:03:40]} 18. e4 {[%emt 0:06:23]} fxe4 {[%emt 0:05:42]} 19. fxe4 {[%emt 0:00:06]} dxe4 {[%emt 0:01:09]} 20. Bxe4 {[%emt 0:00:30]} Rae8 {[%emt 0:00:45]} 21. c5 {[%emt 0:05:07]} Be7 {[%emt 0:02:09]} 22. Rb1 {[%emt 0:05:03]} *

[Event "Charlotte Fall IM-D 2023"]
[Site "Charlotte"]
[Date "2023.11.17"]
[Round "1.2"]
[White "Matta, Nicholas"]
[Black "Dukic, Zachary"]
[Result "0-1"]
[ECO "E04"]
[WhiteElo "2287"]
[BlackElo "2233"]
[Annotator "RC"]
[PlyCount "120"]
[EventDate "2023.11.17"]
[EventType "tourn"]
[EventCountry "USA"]
[SourceTitle "playchess.com"]
[Source "ChessBase"]
[SourceQuality "1"]
[TimeControl "5400+30"]

1. d4 {[%emt 0:00:02]} Nf6 {[%emt 0:00:05]} 2. Nf3 {[%emt 0:00:10]} d5 {[%emt 0:00:13]} 3. c4 {[%emt 0:00:14]} e6 {[%emt 0:00:06]} 4. g3 {[%emt 0:00:25]} dxc4 {[%emt 0:00:16]} 5. Bg2 {[%emt 0:00:11]} Bb4+ {[%emt 0:00:18]} 6. Bd2 {[%emt 0:00:34]} a5 {[%emt 0:00:05]} 7. O-O {[%emt 0:04:39]} O-O {[%emt 0:00:13]} 8. Bxb4 {[%emt 0:11:07]} axb4 {[%emt 0:00:10]} 9. Ne5 {[%emt 0:01:11]} Nc6 {[%emt 0:03:08]} 10. Nxc6 {[%emt 0:09:10]} bxc6 {[%emt 0:00:08]} 11. Bxc6 {[%emt 0:01:06]} Rb8 {[%emt 0:04:21]} 12. a3 {[%emt 0:04:08]} Bb7 {[%emt 0:22:16]} 13. Bxb7 {[%emt 0:03:07]} Rxb7 {[%emt 0:00:08]} 14. axb4 {[%emt 0:10:12]} Rxb4 {[%emt 0:00:28]} 15. Na3 {[%emt 0:01:15]} Qd5 {[%emt 0:02:11]} 16. Rc1 {[%emt 0:02:37]} h5 {[%emt 0:16:00]} 17. Nc2 {[%emt 0:08:38]} Rxb2 {[%emt 0:01:37]} 18. Ne3 {[%emt 0:00:09]} Qe4 {[%emt 0:11:07]} 19. Nxc4 {[%emt 0:01:05]} Ra2 {[%emt 0:00:36]} 20. e3 {[%emt 0:02:15]} h4 {[%emt 0:03:19]} 21. Ne5 {[%emt 0:00:57]} Rb8 {[%emt 0:04:18]} 22. Qd3 {[%emt 0:14:46]} h3 {[%emt 0:04:52]} 23. Qxe4 {[%emt 0:10:42]} Nxe4 {[%emt 0:00:01]} 24. Nc4 {[%emt 0:04:29]} Rb4 {[%emt 0:04:32]} 25. Ne5 {[%emt 0:00:19]} Rbb2 {[%emt 0:04:15]} 26. Nd3 {[%emt 0:00:35]} Rd2 {[%emt 0:00:38]} 27. Rcd1 {[%emt 0:00:32]} g5 {[%emt 0:02:14]} 28. g4 {[%emt 0:05:07]} Kg7 {[%emt 0:02:20]} 29. Rfe1 {[%emt 0:00:35]} Rxf2 {[%emt 0:03:54]} 30. Nxf2 {[%emt 0:00:19]} Rxf2 {[%emt 0:00:07]} 31. Rf1 {[%emt 0:03:55]} Rg2+ {[%emt 0:00:08]} 32. Kh1 {[%emt 0:00:02]} Nf2+ {[%emt 0:00:13]} 33. Rxf2 {[%emt 0:00:03]} Rxf2 {[%emt 0:00:04]} 34. Rc1 {[%emt 0:00:13]} Re2 {[%emt 0:00:23]} 35. Kg1 {[%emt 0:00:11]} Rxe3 {[%emt 0:01:20]} 36. Kf2 {[%emt 0:01:51]} Re4 {[%emt 0:02:10]} 37. Kf3 {[%emt 0:00:15]} Rxd4 {[%emt 0:00:17]} 38. Rxc7 {[%emt 0:00:05]} Rd3+ {[%emt 0:00:33]} 39. Kf2 {[%emt 0:00:46]} e5 {[%emt 0:01:54]} 40. Re7 {[%emt 0:00:46]} Kf6 {[%emt 0:00:21]} 41. Re8 {[%emt 0:00:39]} Ra3 {[%emt 0:00:09]} 42. Rb8 {[%emt 0:00:24]} e4 {[%emt 0:00:17]} 43. Rb5 {[%emt 0:00:20]} Rf3+ {[%emt 0:00:13]} 44. Ke2 {[%emt 0:00:04]} Rf4 {[%emt 0:00:06]} 45. Rb6+ {[%emt 0:00:12]} Kg7 {[%emt 0:00:11]} 46. Rb3 {[%emt 0:00:06]} Rxg4 {[%emt 0:00:06]} 47. Rxh3 {[%emt 0:00:03]} Rh4 {[%emt 0:00:36]} 48. Rg3 {[%emt 0:00:18]} Rxh2+ {[%emt 0:00:12]} 49. Ke3 {[%emt 0:00:03]} Kg6 {[%emt 0:01:03]} 50. Kxe4 {[%emt 0:00:09]} Rf2 {[%emt 0:00:09]} 51. Ke3 {[%emt 0:01:04]} Rf4 {[%emt 0:00:23]} 52. Rg2 {[%emt 0:00:19]} Kf5 {[%emt 0:00:16]} 53. Ra2 {[%emt 0:00:18]} f6 {[%emt 0:00:17]} 54. Ra1 {[%emt 0:00:16]} Kg4 {[%emt 0:01:31]} 55. Rg1+ {[%emt 0:00:47]} Kh3 {[%emt 0:00:08]} 56. Rh1+ {[%emt 0:00:29]} Kg2 {[%emt 0:00:09]} 57. Rh6 {[%emt 0:02:37]} Rf3+ {[%emt 0:00:13]} 58. Ke2 {[%emt 0:00:16]} g4 {[%emt 0:00:08]} 59. Rg6 {[%emt 0:00:12]} g3 {[%emt 0:12:34]} 60. Rg8 {[%emt 0:00:17]} f5 {[%emt 0:00:00]} 0-1

[Event "Charlotte Fall IM-D 2023"]
[Site "Charlotte"]
[Date "2023.11.17"]
[Round "1.3"]
[White "Eckert, Doug"]
[Black "Girsh, Daniel"]
[Result "0-1"]
[ECO "A13"]
[WhiteElo "2120"]
[BlackElo "2221"]
[Annotator "ChessBase"]
[PlyCount "68"]
[EventDate "2023.11.17"]
[EventType "tourn"]
[EventCountry "USA"]
[SourceTitle "playchess.com"]
[Source "ChessBase"]
[SourceQuality "1"]
[TimeControl "5400+30"]

1. c4 {[%emt 0:02:18]} e6 {[%emt 0:00:39]} 2. Nf3 {[%emt 0:00:23]} d5 {[%emt 0:00:06]} 3. g3 {[%emt 0:00:14]} Nf6 {[%emt 0:00:07]} 4. Bg2 {[%emt 0:00:10]} d4 {[%emt 0:00:08]} 5. e3 {[%emt 0:01:03]} Nc6 {[%emt 0:00:36]} 6. exd4 {[%emt 0:11:53]} Nxd4 {[%emt 0:01:10]} 7. Nxd4 {[%emt 0:00:04]} Qxd4 {[%emt 0:00:09]} 8. Qe2 {[%emt 0:00:08]} Be7 {[%emt 0:07:38]} 9. Nc3 {[%emt 0:01:25]} O-O {[%emt 0:00:55]} 10. O-O {[%emt 0:02:54]} c6 {[%emt 0:04:56]} 11. d3 {[%emt 0:04:31]} Rd8 {[%emt 0:00:10]} 12. Rd1 {[%emt 0:00:16]} e5 {[%emt 0:00:43]} 13. Be3 {[%emt 0:02:12]} Qg4 {[%emt 0:00:07]} 14. h3 {[%emt 0:11:46]} Qg6 {[%emt 0:09:02]} 15. d4 {[%emt 0:03:24]} exd4 {[%emt 0:00:06]} 16. Bxd4 {[%emt 0:01:48]} Be6 {[%emt 0:02:11]} 17. Be3 {[%emt 0:06:30]} Re8 {[%emt 0:00:39]} 18. Rac1 {[%emt 0:02:52]} h5 {[%emt 0:00:35]} 19. Kh1 {[%emt 0:08:35]} Bf5 {[%emt 0:01:57]} 20. Qf1 {[%emt 0:07:01]} Bb4 {[%emt 0:00:56]} 21. Bf4 {[%emt 0:05:17]} h4 {[%emt 0:04:24]} 22. Bd6 {[%emt 0:05:28]} Bxd6 {[%emt 0:00:30]} 23. Rxd6 {[%emt 0:00:04]} hxg3 {[%emt 0:00:56]} 24. fxg3 {[%emt 0:00:07]} Rad8 {[%emt 0:00:47]} 25. Rxd8 {[%emt 0:03:23]} Rxd8 {[%emt 0:00:02]} 26. g4 {[%emt 0:00:56]} Bxg4 {[%emt 0:02:36]} 27. hxg4 {[%emt 0:00:27]} Qh6+ {[%emt 0:01:47]} 28. Bh3 {[%emt 0:03:54]} Nxg4 {[%emt 0:00:04]} 29. Re1 {[%emt 0:00:03]} g6 {[%emt 0:14:54]} 30. Kg1 {[%emt 0:02:05]} Qh4 {[%emt 0:02:38]} 31. Re4 {[%emt 0:07:27]} f5 {[%emt 0:01:02]} 32. Re2 {[%emt 0:00:04]} Ne5 {[%emt 0:06:53]} 33. Bxf5 {[%emt 0:02:53]} Rf8 {[%emt 0:05:04]} 34. Rxe5 {[%emt 0:00:26]} Qd4+ {[%emt 0:00:09]} 0-1

[Event "Charlotte Fall IM-D 2023"]
[Site "Charlotte"]
[Date "2023.11.17"]
[Round "1.4"]
[White "Wan, Joseph"]
[Black "Ansh M Shah"]
[Result "1/2-1/2"]
[ECO "B10"]
[WhiteElo "2242"]
[BlackElo "2169"]
[Annotator "ChessBase"]
[PlyCount "50"]
[EventDate "2023.11.17"]
[EventType "tourn"]
[EventCountry "USA"]
[SourceTitle "playchess.com"]
[Source "ChessBase"]
[SourceQuality "1"]
[TimeControl "5400+30"]

1. e4 {[%emt 0:00:14]} c6 {[%emt 0:00:15]} 2. c4 {[%emt 0:01:02]} d5 {[%emt 0:00:09]} 3. cxd5 {[%emt 0:00:04]} cxd5 {[%emt 0:00:06]} 4. exd5 {[%emt 0:00:03]} Nf6 {[%emt 0:00:09]} 5. Qa4+ {[%emt 0:00:34]} Nbd7 {[%emt 0:00:19]} 6. Nc3 {[%emt 0:00:56]} g6 {[%emt 0:00:52]} 7. Bc4 {[%emt 0:00:18]} Bg7 {[%emt 0:00:34]} 8. d3 {[%emt 0:00:14]} O-O {[%emt 0:00:39]} 9. Nf3 {[%emt 0:00:05]} a6 {[%emt 0:01:26]} 10. Qa3 {[%emt 0:01:31]} b6 {[%emt 0:04:22]} 11. O-O {[%emt 0:01:00]} Bb7 {[%emt 0:00:07]} 12. Re1 {[%emt 0:00:05]} b5 {[%emt 0:03:34]} 13. Bb3 {[%emt 0:00:10]} Re8 {[%emt 0:00:39]} 14. Be3 {[%emt 0:00:43]} Bf8 {[%emt 0:03:16]} 15. Qb4 {[%emt 0:04:39]} Nb6 {[%emt 0:09:32]} 16. Bxb6 {[%emt 0:21:32]} Qxb6 {[%emt 0:00:02]} 17. Qf4 {[%emt 0:03:26]} b4 {[%emt 0:20:11]} 18. Na4 {[%emt 0:03:55]} Qd6 {[%emt 0:03:30]} 19. Qxd6 {[%emt 0:04:17]} exd6 {[%emt 0:00:04]} 20. Nb6 {[%emt 0:00:08]} Rxe1+ {[%emt 0:14:57]} 21. Rxe1 {[%emt 0:00:21]} Rb8 {[%emt 0:00:46]} 22. Bc4 {[%emt 0:15:42]} Ba8 {[%emt 0:20:00]} 23. Nxa8 {[%emt 0:05:00]} Rxa8 {[%emt 0:00:01]} 24. Nd4 {[%emt 0:02:35]} Nd7 {[%emt 0:01:09]} 25. Nc6 {[%emt 0:12:05]} a5 {[%emt 0:00:57]} 1/2-1/2

[Event "Charlotte Fall IM-D 2023"]
[Site "Charlotte"]
[Date "2023.11.18"]
[Round "2.2"]
[White "Ansh M Shah"]
[Black "Andrianov, Nikolay"]
[Result "1-0"]
[ECO "D13"]
[WhiteElo "2169"]
[BlackElo "1816"]
[Annotator "ChessBase"]
[PlyCount "107"]
[EventDate "2023.11.17"]
[EventType "tourn"]
[EventCountry "USA"]
[SourceTitle "playchess.com"]
[Source "ChessBase"]
[SourceQuality "1"]
[TimeControl "5400+30"]

1. d4 {[%emt 0:00:02]} d5 {[%emt 0:02:47]} 2. c4 {[%emt 0:00:14]} c6 {[%emt 0:00:04]} 3. cxd5 {[%emt 0:00:42]} cxd5 {[%emt 0:00:06]} 4. Nc3 {[%emt 0:00:12]} Nf6 {[%emt 0:00:08]} 5. Bf4 {[%emt 0:00:42]} Nc6 {[%emt 0:00:13]} 6. Nf3 {[%emt 0:00:12]} e6 {[%emt 0:02:29]} 7. e3 {[%emt 0:00:37]} Bd6 {[%emt 0:00:33]} 8. Bg3 {[%emt 0:00:49]} Ne4 {[%emt 0:13:27]} 9. Nxe4 {[%emt 0:05:55]} dxe4 {[%emt 0:00:27]} 10. Nd2 {[%emt 0:04:11]} f5 {[%emt 0:01:01]} 11. Bb5 {[%emt 0:19:05]} O-O {[%emt 0:01:03]} 12. Bxc6 {[%emt 0:11:17]} bxc6 {[%emt 0:00:49]} 13. Qc2 {[%emt 0:02:37]} Bxg3 {[%emt 0:03:54]} 14. hxg3 {[%emt 0:00:35]} Ba6 {[%emt 0:04:24]} 15. Qxc6 {[%emt 0:18:30]} Qc8 {[%emt 0:14:13]} 16. Rc1 {[%emt 0:02:24]} Qxc6 {[%emt 0:01:12]} 17. Rxc6 {[%emt 0:00:02]} Rfc8 {[%emt 0:00:12]} 18. Rc5 {[%emt 0:19:30]} Rxc5 {[%emt 0:01:54]} 19. dxc5 {[%emt 0:00:01]} Rb8 {[%emt 0:00:12]} 20. Nb3 {[%emt 0:00:15]} Bc4 {[%emt 0:03:01]} 21. Kd2 {[%emt 0:01:44]} Bxb3 {[%emt 0:00:45]} 22. axb3 {[%emt 0:00:02]} Rxb3 {[%emt 0:00:09]} 23. Ra1 {[%emt 0:00:56]} Rxb2+ {[%emt 0:23:39]} 24. Kc3 {[%emt 0:00:22]} Rb7 {[%emt 0:02:42]} 25. Kc4 {[%emt 0:01:36]} Kf8 {[%emt 0:02:05]} 26. c6 {[%emt 0:00:30]} Rb2 {[%emt 0:01:11]} 27. Kc5 {[%emt 0:02:37]} Ke7 {[%emt 0:02:48]} 28. Rxa7+ {[%emt 0:00:40]} Kd8 {[%emt 0:00:05]} 29. Kd6 {[%emt 0:01:51]} Rd2+ {[%emt 0:00:14]} 30. Kxe6 {[%emt 0:00:11]} Rxf2 {[%emt 0:00:06]} 31. Rxg7 {[%emt 0:01:23]} h5 {[%emt 0:01:25]} 32. Kd6 {[%emt 0:02:40]} Rd2+ {[%emt 0:00:18]} 33. Ke5 {[%emt 0:00:01]} Re2 {[%emt 0:04:58]} 34. Kd6 {[%emt 0:04:13]} Rd2+ {[%emt 0:00:06]} 35. Ke5 {[%emt 0:00:08]} Re2 {[%emt 0:00:05]} 36. Kxf5 {[%emt 0:00:49]} Rxe3 {[%emt 0:00:07]} 37. g4 {[%emt 0:00:38]} hxg4 {[%emt 0:02:16]} 38. Rxg4 {[%emt 0:00:28]} Re2 {[%emt 0:00:38]} 39. Rg7 {[%emt 0:00:25]} Kc8 {[%emt 0:04:52]} 40. c7 {[%emt 0:00:40]} e3 {[%emt 0:03:07]} 41. Kf4 {[%emt 0:00:03]} Re1 {[%emt 0:00:10]} 42. Kf3 {[%emt 0:00:18]} e2 {[%emt 0:00:40]} 43. Kf2 {[%emt 0:00:23]} Rc1 {[%emt 0:00:15]} 44. Kxe2 {[%emt 0:00:07]} Rxc7 {[%emt 0:00:01]} 45. Rxc7+ {[%emt 0:00:38]} Kxc7 {[%emt 0:00:01]} 46. Kf3 {[%emt 0:00:17]} Kd7 {[%emt 0:00:03]} 47. Kg4 {[%emt 0:00:10]} Ke8 {[%emt 0:00:14]} 48. Kg5 {[%emt 0:00:18]} Kf7 {[%emt 0:00:08]} 49. Kh6 {[%emt 0:00:17]} Kg8 {[%emt 0:01:02]} 50. g4 {[%emt 0:00:47]} Kh8 {[%emt 0:00:50]} 51. Kg6 {[%emt 0:00:25]} Kg8 {[%emt 0:00:04]} 52. g5 {[%emt 0:00:16]} Kh8 {[%emt 0:00:04]} 53. Kf7 {[%emt 0:00:09]} Kh7 {[%emt 0:00:04]} 54. g6+ {[%emt 0:00:06]} 1-0

[Event "Charlotte Fall IM-D 2023"]
[Site "Charlotte"]
[Date "2023.11.18"]
[Round "2.3"]
[White "Girsh, Daniel"]
[Black "Wan, Joseph"]
[Result "1/2-1/2"]
[ECO "E12"]
[WhiteElo "2221"]
[BlackElo "2242"]
[Annotator "ChessBase"]
[PlyCount "55"]
[EventDate "2023.11.17"]
[EventType "tourn"]
[EventCountry "USA"]
[SourceTitle "playchess.com"]
[Source "ChessBase"]
[SourceQuality "1"]
[TimeControl "5400+30"]

1. d4 {[%emt 0:00:30]} e6 {[%emt 0:01:55]} 2. c4 {[%emt 0:00:27]} b6 {[%emt 0:00:12]} 3. Nc3 {[%emt 0:01:13]} Bb7 {[%emt 0:00:04]} 4. a3 {[%emt 0:00:06]} Nf6 {[%emt 0:00:37]} 5. Nf3 {[%emt 0:03:31]} d5 {[%emt 0:01:48]} 6. cxd5 {[%emt 0:00:18]} Nxd5 {[%emt 0:01:33]} 7. Qc2 {[%emt 0:00:08]} Be7 {[%emt 0:02:08]} 8. e4 {[%emt 0:00:07]} Nxc3 {[%emt 0:00:05]} 9. bxc3 {[%emt 0:00:07]} Nd7 {[%emt 0:00:45]} 10. Bd3 {[%emt 0:00:39]} O-O {[%emt 0:00:37]} 11. O-O {[%emt 1:28:54]} c5 {[%emt 0:05:19]} 12. Qe2 {[%emt 0:00:00]} Qc7 {[%emt 0:04:27]} 13. Bb2 {[%emt 0:00:00]} Rac8 {[%emt 0:03:09]} 14. Rad1 {[%emt 0:00:00]} c4 {[%emt 0:08:48]} 15. Bb1 {[%emt 0:00:00]} Rfe8 {[%emt 0:01:46]} 16. Bc1 {[%emt 0:00:00]} b5 {[%emt 0:04:37]} 17. Qc2 {[%emt 0:00:00]} Nf8 {[%emt 0:14:39]} 18. Ne5 {[%emt 0:00:00]} f6 {[%emt 0:01:52]} 19. Ng4 {[%emt 0:00:00]} Qa5 {[%emt 0:03:23]} 20. Ne3 {[%emt 0:00:00]} Qa6 {[%emt 0:07:04]} 21. Qb2 {[%emt 0:00:00]} Nd7 {[%emt 0:02:35]} 22. f4 {[%emt 0:00:00]} Nb6 {[%emt 0:03:07]} 23. Rde1 {[%emt 0:00:00]} Na4 {[%emt 0:01:13]} 24. Qc2 {[%emt 0:00:00]} Rf8 {[%emt 0:05:25]} 25. f5 {[%emt 0:00:00]} e5 {[%emt 0:07:23]} 26. Nd5 {[%emt 0:00:00]} Bxd5 {[%emt 0:03:05]} 27. exd5 {[%emt 0:00:00]} Bd6 {[%emt 0:00:03]} 28. Rf3 {[%emt 0:00:00]} 1/2-1/2

[Event "Charlotte Fall IM-D 2023"]
[Site "Charlotte"]
[Date "2023.11.18"]
[Round "2.4"]
[White "Dukic, Zachary"]
[Black "Eckert, Doug"]
[Result "1-0"]
[ECO "C84"]
[WhiteElo "2233"]
[BlackElo "2120"]
[Annotator "ChessBase"]
[PlyCount "105"]
[EventDate "2023.11.17"]
[EventType "tourn"]
[EventCountry "USA"]
[SourceTitle "playchess.com"]
[Source "ChessBase"]
[SourceQuality "1"]
[TimeControl "5400+30"]

1. e4 {[%emt 0:00:02]} e5 {[%emt 0:02:07]} 2. Nf3 {[%emt 0:00:06]} Nc6 {[%emt 0:00:11]} 3. Bb5 {[%emt 0:00:07]} a6 {[%emt 0:00:04]} 4. Ba4 {[%emt 0:00:06]} Nf6 {[%emt 0:00:12]} 5. O-O {[%emt 0:00:10]} Be7 {[%emt 0:00:10]} 6. d3 {[%emt 0:00:09]} b5 {[%emt 0:00:19]} 7. Bb3 {[%emt 0:00:05]} d6 {[%emt 0:00:06]} 8. a3 {[%emt 0:00:04]} Na5 {[%emt 0:00:13]} 9. Ba2 {[%emt 0:00:06]} c5 {[%emt 0:00:12]} 10. Nc3 {[%emt 0:00:09]} Be6 {[%emt 0:00:20]} 11. Nh4 {[%emt 0:00:11]} c4 {[%emt 0:06:44]} 12. Nf5 {[%emt 0:00:47]} Bxf5 {[%emt 0:03:41]} 13. exf5 {[%emt 0:00:10]} d5 {[%emt 0:02:04]} 14. Bg5 {[%emt 0:00:19]} O-O {[%emt 0:03:25]} 15. Qe1 {[%emt 0:00:13]} h6 {[%emt 0:09:13]} 16. Bxf6 {[%emt 0:00:33]} Bxf6 {[%emt 0:00:05]} 17. Nxd5 {[%emt 0:00:14]} Qxd5 {[%emt 0:00:06]} 18. Qxa5 {[%emt 0:00:11]} Qd4 {[%emt 0:00:19]} 19. Qb4 {[%emt 0:00:49]} cxd3 {[%emt 0:05:10]} 20. Qxd4 {[%emt 0:00:12]} exd4 {[%emt 0:00:03]} 21. cxd3 {[%emt 0:00:21]} Rac8 {[%emt 0:00:56]} 22. Bd5 {[%emt 0:15:06]} Rc5 {[%emt 0:06:07]} 23. Be4 {[%emt 0:07:58]} Rfc8 {[%emt 0:02:57]} 24. g3 {[%emt 0:24:34]} R8c7 {[%emt 0:01:20]} 25. Kg2 {[%emt 0:06:51]} Rc2 {[%emt 0:01:55]} 26. b4 {[%emt 0:03:10]} Bg5 {[%emt 0:12:33]} 27. a4 {[%emt 0:06:04]} Bd2 {[%emt 0:04:23]} 28. axb5 {[%emt 0:00:24]} axb5 {[%emt 0:00:04]} 29. Rfb1 {[%emt 0:03:08]} Be3 {[%emt 0:09:06]} 30. Ra8+ {[%emt 0:01:10]} Kh7 {[%emt 0:00:04]} 31. f6+ {[%emt 0:01:48]} g6 {[%emt 0:01:30]} 32. Rf1 {[%emt 0:00:15]} Rb2 {[%emt 0:06:53]} 33. Kf3 {[%emt 0:01:35]} Bd2 {[%emt 0:03:38]} 34. h4 {[%emt 0:07:19]} Rxb4 {[%emt 0:03:18]} 35. Rfa1 {[%emt 0:04:19]} Ra4 {[%emt 0:01:51]} 36. R1xa4 {[%emt 0:00:55]} bxa4 {[%emt 0:00:04]} 37. Rxa4 {[%emt 0:03:45]} Rd7 {[%emt 0:00:12]} 38. Ke2 {[%emt 0:00:11]} Bc3 {[%emt 0:04:09]} 39. g4 {[%emt 0:00:42]} Bb2 {[%emt 0:03:52]} 40. f4 {[%emt 0:01:04]} Bc1 {[%emt 0:01:49]} 41. Kf3 {[%emt 0:00:22]} Rd6 {[%emt 0:00:28]} 42. g5 {[%emt 0:01:43]} hxg5 {[%emt 0:00:11]} 43. hxg5 {[%emt 0:01:49]} Rd7 {[%emt 0:01:10]} 44. Bc6 {[%emt 0:00:56]} Rc7 {[%emt 0:00:46]} 45. Bd5 {[%emt 0:00:11]} Be3 {[%emt 0:01:17]} 46. Ra2 {[%emt 0:00:57]} Rc1 {[%emt 0:06:40]} 47. Ra7 {[%emt 0:04:41]} Rf1+ {[%emt 0:00:49]} 48. Ke2 {[%emt 0:00:39]} Rxf4 {[%emt 0:00:54]} 49. Rxf7+ {[%emt 0:00:13]} Kh8 {[%emt 0:00:05]} 50. Re7 {[%emt 0:02:39]} Rf2+ {[%emt 0:00:55]} 51. Ke1 {[%emt 0:00:21]} Rf5 {[%emt 0:00:29]} 52. Re8+ {[%emt 0:00:18]} Kh7 {[%emt 0:00:04]} 53. Bg8+ {[%emt 0:00:13]} 1-0

[Event "Charlotte Fall IM-D 2023"]
[Site "Charlotte"]
[Date "2023.11.18"]
[Round "2.5"]
[White "Karthik, Advaith"]
[Black "Matta, Nicholas"]
[Result "1/2-1/2"]
[ECO "D11"]
[WhiteElo "2156"]
[BlackElo "2287"]
[Annotator "RC"]
[PlyCount "56"]
[EventDate "2023.11.17"]
[EventType "tourn"]
[EventCountry "USA"]
[SourceTitle "playchess.com"]
[Source "ChessBase"]
[SourceQuality "1"]
[TimeControl "5400+30"]

1. d4 {[%emt 0:04:10]} d5 {[%emt 0:00:10]} 2. Nf3 {[%emt 0:00:38]} Nf6 {[%emt 0:00:26]} 3. g3 {[%emt 0:00:13]} Bf5 {[%emt 0:00:56]} 4. Bg2 {[%emt 0:00:15]} e6 {[%emt 0:00:21]} 5. O-O {[%emt 0:00:40]} h6 {[%emt 0:02:05]} 6. c4 {[%emt 0:00:45]} c6 {[%emt 0:00:41]} 7. Qb3 {[%emt 0:02:35]} Qb6 {[%emt 0:00:38]} 8. c5 {[%emt 0:00:26]} Qxb3 {[%emt 0:01:38]} 9. axb3 {[%emt 0:00:01]} Be7 {[%emt 0:00:39]} 10. Nc3 {[%emt 0:00:14]} O-O {[%emt 0:00:38]} 11. b4 {[%emt 0:03:50]} a6 {[%emt 0:00:25]} 12. Ne5 {[%emt 0:01:54]} Nbd7 {[%emt 0:01:39]} 13. f4 {[%emt 0:03:11]} Rfd8 {[%emt 0:06:41]} 14. h3 {[%emt 0:04:08]} Ne4 {[%emt 0:04:19]} 15. g4 {[%emt 0:01:26]} Bh7 {[%emt 0:01:10]} 16. Nxd7 {[%emt 0:08:20]} Rxd7 {[%emt 0:01:24]} 17. e3 {[%emt 0:04:45]} Re8 {[%emt 0:08:21]} 18. Nxe4 {[%emt 0:05:36]} Bxe4 {[%emt 0:05:22]} 19. Bd2 {[%emt 0:00:09]} Bd3 {[%emt 0:02:56]} 20. Rfd1 {[%emt 0:01:19]} f6 {[%emt 0:03:29]} 21. Be1 {[%emt 0:00:18]} Bh7 {[%emt 0:01:47]} 22. Bg3 {[%emt 0:00:15]} Bd8 {[%emt 0:00:58]} 23. Bf3 {[%emt 0:04:35]} Bc7 {[%emt 0:01:06]} 24. Kg2 {[%emt 0:03:16]} e5 {[%emt 0:03:29]} 25. f5 {[%emt 0:06:44]} Rde7 {[%emt 0:07:20]} 26. Re1 {[%emt 0:03:58]} g6 {[%emt 0:09:57]} 27. fxg6 {[%emt 0:03:51]} Bxg6 {[%emt 0:00:05]} 28. Rad1 {[%emt 0:02:14]} Kg7 {[%emt 0:09:40]} 1/2-1/2